[Event "Titled Tuesday Blitz April 18 Late 2023"]
[White "Yuan, Qingyu"]
[Black "Fiorito, Francisco"]
[WhiteFideId "8609772"]
[BlackFideId "180165"]
[WhiteElo "2359"]
[BlackElo "2341"]
[Result "0-1"]
[Round "05"]
[TimeControl "180+2"]
[Date "2023.04.18"]
[WhiteClock "0:00:03"]
[BlackClock "0:00:06"]

1. e4 {[%clk 0:03:00]}  e5 {[%clk 0:02:57]} 2. Nf3 {[%clk 0:03:00]}  Nf6 {[%clk 0:02:56]} 3. Nxe5 {[%clk 0:03:00]}  d6 {[%clk 0:02:56]} 4. Nf3 {[%clk 0:03:00]}  Nxe4 {[%clk 0:02:56]} 5. Nc3 {[%clk 0:03:01]}  Nxc3 {[%clk 0:02:56]} 6. dxc3 {[%clk 0:03:02]}  Be7 {[%clk 0:02:57]} 7. Bf4 {[%clk 0:02:52]}  O-O {[%clk 0:02:56]} 8. Qd2 {[%clk 0:02:52]}  Nd7 {[%clk 0:02:56]} 9. O-O-O {[%clk 0:02:50]}  Nf6 {[%clk 0:02:55]} 10. Bd3 {[%clk 0:02:45]}  Re8 {[%clk 0:02:46]} 11. h3 {[%clk 0:02:40]}  c5 {[%clk 0:02:42]} 12. Rhe1 {[%clk 0:02:28]}  Be6 {[%clk 0:02:42]} 13. a3 {[%clk 0:02:16]}  a6 {[%clk 0:02:28]} 14. Ng5 {[%clk 0:02:06]}  Bd7 {[%clk 0:01:52]} 15. Bc4 {[%clk 0:02:00]}  Rf8 {[%clk 0:01:47]} 16. Rxe7 {[%clk 0:01:37]}  Qxe7 {[%clk 0:01:37]} 17. Bxd6 {[%clk 0:01:36]}  Qd8 {[%clk 0:01:08]} 18. Bxf8 {[%clk 0:01:36]}  Qxf8 {[%clk 0:01:09]} 19. Nxf7 {[%clk 0:01:30]}  Bb5 {[%clk 0:01:09]} 20. Nh6+ {[%clk 0:01:28]}  Kh8 {[%clk 0:01:10]} 21. Nf7+ {[%clk 0:01:28]}  Kg8 {[%clk 0:01:09]} 22. Be6 {[%clk 0:01:07]}  Re8 {[%clk 0:00:57]} 23. Ng5+ {[%clk 0:00:56]}  Kh8 {[%clk 0:00:56]} 24. Bf7 {[%clk 0:00:41]}  Ra8 {[%clk 0:00:46]} 25. Ba2 {[%clk 0:00:31]}  c4 {[%clk 0:00:42]} 26. Qd4 {[%clk 0:00:27]}  h6 {[%clk 0:00:37]} 27. Ne6 {[%clk 0:00:23]}  Qf7 {[%clk 0:00:19]} 28. Nf4 {[%clk 0:00:21]}  Re8 {[%clk 0:00:17]} 29. a4 {[%clk 0:00:20]}  Bxa4 {[%clk 0:00:17]} 30. Bxc4 {[%clk 0:00:20]}  Qc7 {[%clk 0:00:18]} 31. Ng6+ {[%clk 0:00:15]}  Kh7 {[%clk 0:00:18]} 32. Bd3 {[%clk 0:00:13]}  Bc6 {[%clk 0:00:18]} 33. Ne7+ {[%clk 0:00:10]}  Kh8 {[%clk 0:00:19]} 34. Ng6+ {[%clk 0:00:10]}  Kg8 {[%clk 0:00:18]} 35. Qc4+ {[%clk 0:00:09]}  Kh7 {[%clk 0:00:15]} 36. Kb1 {[%clk 0:00:07]}  Qa5 {[%clk 0:00:13]} 37. Ne7+ {[%clk 0:00:06]}  Kh8 {[%clk 0:00:13]} 38. Nxc6 {[%clk 0:00:06]}  bxc6 {[%clk 0:00:14]} 39. Qxc6 {[%clk 0:00:07]}  Rb8 {[%clk 0:00:14]} 40. Re1 {[%clk 0:00:06]}  Qa3 {[%clk 0:00:09]} 41. b3 {[%clk 0:00:04]}  Qf8 {[%clk 0:00:08]} 42. Re6 {[%clk 0:00:04]}  Rc8 {[%clk 0:00:07]} 43. Qf3 {[%clk 0:00:04]}  Rxc3 {[%clk 0:00:07]} 44. Qf5 {[%clk 0:00:04]}  Kg8 {[%clk 0:00:06]} 45. Qg6 {[%clk 0:00:04]}  Rc7 {[%clk 0:00:05]} 46. Rxa6 {[%clk 0:00:04]}  Re7 {[%clk 0:00:04]} 47. Rd6 {[%clk 0:00:04]}  Re1+ {[%clk 0:00:05]} 48. Kb2 {[%clk 0:00:03]}  Qxd6 {[%clk 0:00:06]} 49. Bc4+ {[%clk 0:00:03]}  Kh8 {[%clk 0:00:05]} 50. Qf7 {[%clk 0:00:02]}  Qe5+ {[%clk 0:00:05]} 51. c3 {[%clk 0:00:02]}  Qe7 {[%clk 0:00:04]} 52. Qg6 {[%clk 0:00:02]}  Qd8 {[%clk 0:00:03]} 53. Qf5 {[%clk 0:00:02]}  Qd2+ {[%clk 0:00:04]} 54. Ka3 {[%clk 0:00:02]}  Ra1+ {[%clk 0:00:05]} 55. Kb4 {[%clk 0:00:03]}  Qd6+ {[%clk 0:00:05]} 56. Kb5 {[%clk 0:00:03]}  Qd7+ {[%clk 0:00:06]} 57. Kb4 {[%clk 0:00:03]}  Qxf5 {[%clk 0:00:06]} 0-1


[Site "https://www.chess.com"]

[Event "Titled Tuesday Blitz April 18 Late 2023"]
[White "Al-Tarboush, Ward"]
[Black "Gaehwiler, Gabriel"]
[WhiteFideId "7601450"]
[BlackFideId "1314530"]
[WhiteElo "2265"]
[BlackElo "2437"]
[Result "0-1"]
[Round "05"]
[TimeControl "180+2"]
[Date "2023.04.18"]
[WhiteClock "0:00:02"]
[BlackClock "0:00:18"]

1. e4 {[%clk 0:03:00]}  c5 {[%clk 0:02:59]} 2. Nf3 {[%clk 0:03:01]}  d6 {[%clk 0:02:59]} 3. d4 {[%clk 0:03:01]}  Nf6 {[%clk 0:02:59]} 4. Nc3 {[%clk 0:03:01]}  cxd4 {[%clk 0:02:59]} 5. Nxd4 {[%clk 0:03:02]}  a6 {[%clk 0:02:59]} 6. h3 {[%clk 0:03:02]}  e6 {[%clk 0:02:59]} 7. g4 {[%clk 0:03:03]}  d5 {[%clk 0:02:56]} 8. Nde2 {[%clk 0:03:03]}  Nc6 {[%clk 0:02:44]} 9. Bg2 {[%clk 0:02:51]}  d4 {[%clk 0:02:30]} 10. e5 {[%clk 0:02:44]}  Nxe5 {[%clk 0:02:10]} 11. Nxd4 {[%clk 0:02:39]}  Bc5 {[%clk 0:02:06]} 12. Be3 {[%clk 0:02:38]}  Nc4 {[%clk 0:01:58]} 13. Nxe6 {[%clk 0:01:44]}  Bxe6 {[%clk 0:00:40]} 14. Qxd8+ {[%clk 0:01:31]}  Rxd8 {[%clk 0:00:39]} 15. Bxc5 {[%clk 0:01:32]}  b6 {[%clk 0:00:39]} 16. Be3 {[%clk 0:00:54]}  Ke7 {[%clk 0:00:39]} 17. O-O {[%clk 0:00:53]}  b5 {[%clk 0:00:37]} 18. Rad1 {[%clk 0:00:52]}  Nxe3 {[%clk 0:00:36]} 19. fxe3 {[%clk 0:00:51]}  Rc8 {[%clk 0:00:37]} 20. a3 {[%clk 0:00:51]}  Rc5 {[%clk 0:00:36]} 21. Rd4 {[%clk 0:00:50]}  Rhc8 {[%clk 0:00:36]} 22. Rfd1 {[%clk 0:00:50]}  h6 {[%clk 0:00:35]} 23. Kh2 {[%clk 0:00:43]}  R8c7 {[%clk 0:00:34]} 24. Kg3 {[%clk 0:00:43]}  Nd7 {[%clk 0:00:34]} 25. Bd5 {[%clk 0:00:42]}  Nb6 {[%clk 0:00:30]} 26. Bxe6 {[%clk 0:00:42]}  fxe6 {[%clk 0:00:31]} 27. Re4 {[%clk 0:00:40]}  R7c6 {[%clk 0:00:24]} 28. Ne2 {[%clk 0:00:14]}  Nc4 {[%clk 0:00:25]} 29. Nd4 {[%clk 0:00:10]}  Rb6 {[%clk 0:00:24]} 30. Nf5+ {[%clk 0:00:03]}  Kf6 {[%clk 0:00:24]} 31. Nd4 {[%clk 0:00:02]}  g6 {[%clk 0:00:16]} 32. Rf1+ {[%clk 0:00:02]}  Ke7 {[%clk 0:00:16]} 33. Rf2 {[%clk 0:00:01]}  Nxb2 {[%clk 0:00:16]} 34. Nf3 {[%clk 0:00:01]}  Nc4 {[%clk 0:00:16]} 35. Nh4 {[%clk 0:00:01]}  Rg5 {[%clk 0:00:17]} 36. Rd4 {[%clk 0:00:01]}  Rb7 {[%clk 0:00:15]} 37. Rf3 {[%clk 0:00:01]}  Ne5 {[%clk 0:00:15]} 38. Rf1 {[%clk 0:00:01]}  Rc7 {[%clk 0:00:16]} 39. Rfd1 {[%clk 0:00:01]}  Nc6 {[%clk 0:00:15]} 40. R4d2 {[%clk 0:00:01]}  Na5 {[%clk 0:00:14]} 41. Nf3 {[%clk 0:00:01]}  Rgc5 {[%clk 0:00:14]} 42. Nd4 {[%clk 0:00:01]}  Nc4 {[%clk 0:00:14]} 43. Rd3 {[%clk 0:00:01]}  Rd5 {[%clk 0:00:15]} 44. Rf1 {[%clk 0:00:01]}  Ne5 {[%clk 0:00:15]} 45. Rd2 {[%clk 0:00:01]}  Rc3 {[%clk 0:00:16]} 46. Re2 {[%clk 0:00:01]}  Nc4 {[%clk 0:00:16]} 47. Rf3 {[%clk 0:00:02]}  Rxa3 {[%clk 0:00:16]} 48. e4 {[%clk 0:00:01]}  Rxf3+ {[%clk 0:00:15]} 49. Nxf3 {[%clk 0:00:02]}  Rc5 {[%clk 0:00:16]} 50. e5 {[%clk 0:00:02]}  Nb6 {[%clk 0:00:16]} 51. Nd4 {[%clk 0:00:02]}  Nd5 {[%clk 0:00:15]} 52. Rf2 {[%clk 0:00:03]}  Rc3+ {[%clk 0:00:15]} 53. Kh2 {[%clk 0:00:03]}  b4 {[%clk 0:00:16]} 54. Rf1 {[%clk 0:00:02]}  Rc4 {[%clk 0:00:16]} 55. Nb3 {[%clk 0:00:02]}  Rxc2+ {[%clk 0:00:16]} 56. Kg3 {[%clk 0:00:03]}  Rc3+ {[%clk 0:00:17]} 57. Rf3 {[%clk 0:00:03]}  Rxf3+ {[%clk 0:00:17]} 58. Kxf3 {[%clk 0:00:03]}  Kd7 {[%clk 0:00:17]} 59. Ke4 {[%clk 0:00:04]}  Kc6 {[%clk 0:00:17]} 60. Kd4 {[%clk 0:00:04]}  Kb5 {[%clk 0:00:17]} 61. Nc5 {[%clk 0:00:05]}  Nc7 {[%clk 0:00:17]} 62. h4 {[%clk 0:00:02]}  a5 {[%clk 0:00:17]} 63. Nb7 {[%clk 0:00:02]}  a4 {[%clk 0:00:17]} 64. Nd6+ {[%clk 0:00:02]}  Kc6 {[%clk 0:00:18]} 65. Kc4 {[%clk 0:00:02]}  b3 {[%clk 0:00:18]} 0-1


[Site "https://www.chess.com"]

[Event "Titled Tuesday Blitz April 18 Late 2023"]
[White "Graif, William"]
[Black "Djordjevic, Vuk"]
[WhiteFideId "2609835"]
[BlackFideId "902098"]
[WhiteElo "2205"]
[BlackElo "2452"]
[Result "0-1"]
[Round "05"]
[TimeControl "180+2"]
[Date "2023.04.18"]
[WhiteClock "0:00:07"]
[BlackClock "0:00:06"]

1. e4 {[%clk 0:02:53]}  d5 {[%clk 0:02:58]} 2. d4 {[%clk 0:02:51]}  dxe4 {[%clk 0:02:58]} 3. Nc3 {[%clk 0:02:51]}  Nf6 {[%clk 0:02:58]} 4. Bg5 {[%clk 0:02:50]}  Nbd7 {[%clk 0:02:47]} 5. f3 {[%clk 0:02:49]}  exf3 {[%clk 0:02:46]} 6. Nxf3 {[%clk 0:02:47]}  h6 {[%clk 0:02:45]} 7. Bh4 {[%clk 0:02:45]}  e6 {[%clk 0:02:31]} 8. Bd3 {[%clk 0:02:44]}  Be7 {[%clk 0:02:24]} 9. Qe2 {[%clk 0:02:26]}  c6 {[%clk 0:02:14]} 10. O-O-O {[%clk 0:02:24]}  Nd5 {[%clk 0:01:59]} 11. Nxd5 {[%clk 0:02:08]}  Bxh4 {[%clk 0:01:57]} 12. Nxh4 {[%clk 0:01:50]}  cxd5 {[%clk 0:01:52]} 13. Ng6 {[%clk 0:01:08]}  fxg6 {[%clk 0:01:43]} 14. Qxe6+ {[%clk 0:01:01]}  Qe7 {[%clk 0:01:42]} 15. Qxg6+ {[%clk 0:00:43]}  Kd8 {[%clk 0:01:38]} 16. Kb1 {[%clk 0:00:43]}  Re8 {[%clk 0:01:24]} 17. Qg3 {[%clk 0:00:34]}  Nf6 {[%clk 0:01:22]} 18. Bg6 {[%clk 0:00:29]}  Rf8 {[%clk 0:01:14]} 19. Rhe1 {[%clk 0:00:27]}  Ne4 {[%clk 0:01:06]} 20. Bxe4 {[%clk 0:00:14]}  dxe4 {[%clk 0:01:05]} 21. d5 {[%clk 0:00:15]}  Bf5 {[%clk 0:01:03]} 22. d6 {[%clk 0:00:14]}  Qd7 {[%clk 0:00:42]} 23. Rf1 {[%clk 0:00:13]}  Rc8 {[%clk 0:00:41]} 24. Qh4+ {[%clk 0:00:11]}  Ke8 {[%clk 0:00:32]} 25. Qh5+ {[%clk 0:00:10]}  g6 {[%clk 0:00:17]} 26. Qxh6 {[%clk 0:00:10]}  Rg8 {[%clk 0:00:13]} 27. g4 {[%clk 0:00:09]}  Bxg4 {[%clk 0:00:10]} 28. Rd4 {[%clk 0:00:08]}  Bf5 {[%clk 0:00:10]} 29. Qg5 {[%clk 0:00:06]}  Rd8 {[%clk 0:00:08]} 30. Qf6 {[%clk 0:00:06]}  Qe6 {[%clk 0:00:04]} 31. Qg5 {[%clk 0:00:04]}  Kd7 {[%clk 0:00:04]} 32. Qf4 {[%clk 0:00:03]}  Rc8 {[%clk 0:00:04]} 33. Rb4 {[%clk 0:00:03]}  b6 {[%clk 0:00:05]} 34. Rb3 {[%clk 0:00:04]}  Rc6 {[%clk 0:00:04]} 35. Re3 {[%clk 0:00:04]}  Qxd6 {[%clk 0:00:05]} 36. Rfe1 {[%clk 0:00:05]}  Qxf4 {[%clk 0:00:05]} 37. R3e2 {[%clk 0:00:05]}  Qe5 {[%clk 0:00:05]} 38. Rd1+ {[%clk 0:00:06]}  Rd6 {[%clk 0:00:06]} 39. Rde1 {[%clk 0:00:07]}  Qe6 {[%clk 0:00:06]} 40. Re3 {[%clk 0:00:07]}  Rc8 {[%clk 0:00:06]} 0-1


[Site "https://www.chess.com"]

[Event "Titled Tuesday Blitz April 18 Late 2023"]
[White "Lenaerts, Lennert"]
[Black "Kosteniuk, Alexandra"]
[WhiteFideId "211435"]
[BlackFideId "4128125"]
[WhiteElo "2334"]
[BlackElo "2453"]
[Result "1/2-1/2"]
[Round "05"]
[TimeControl "180+2"]
[Date "2023.04.18"]
[WhiteClock "0:00:31"]
[BlackClock "0:00:05"]

1. d4 {[%clk 0:02:59]}  f5 {[%clk 0:02:59]} 2. g3 {[%clk 0:02:58]}  Nf6 {[%clk 0:03:00]} 3. Bg2 {[%clk 0:02:58]}  g6 {[%clk 0:03:00]} 4. Nf3 {[%clk 0:02:58]}  Bg7 {[%clk 0:03:00]} 5. O-O {[%clk 0:02:59]}  O-O {[%clk 0:03:00]} 6. c4 {[%clk 0:03:00]}  d6 {[%clk 0:03:00]} 7. Nc3 {[%clk 0:03:01]}  a5 {[%clk 0:03:01]} 8. b3 {[%clk 0:02:59]}  e5 {[%clk 0:02:57]} 9. dxe5 {[%clk 0:02:57]}  dxe5 {[%clk 0:02:57]} 10. e4 {[%clk 0:02:57]}  Nxe4 {[%clk 0:02:45]} 11. Qxd8 {[%clk 0:02:53]}  Rxd8 {[%clk 0:02:44]} 12. Nxe4 {[%clk 0:02:54]}  fxe4 {[%clk 0:02:45]} 13. Ng5 {[%clk 0:02:55]}  Na6 {[%clk 0:02:20]} 14. Nxe4 {[%clk 0:02:25]}  Bf5 {[%clk 0:02:15]} 15. Bb2 {[%clk 0:02:19]}  c6 {[%clk 0:02:10]} 16. Rad1 {[%clk 0:02:18]}  Bxe4 {[%clk 0:02:03]} 17. Bxe4 {[%clk 0:02:18]}  Nc5 {[%clk 0:02:04]} 18. Bg2 {[%clk 0:02:16]}  Nd3 {[%clk 0:01:54]} 19. Bc3 {[%clk 0:02:14]}  Nb4 {[%clk 0:01:47]} 20. Rxd8+ {[%clk 0:02:02]}  Rxd8 {[%clk 0:01:46]} 21. a3 {[%clk 0:02:03]}  Nc2 {[%clk 0:01:46]} 22. Bxa5 {[%clk 0:02:02]}  Ra8 {[%clk 0:01:34]} 23. b4 {[%clk 0:01:56]}  Nxa3 {[%clk 0:01:25]} 24. c5 {[%clk 0:01:52]}  Nb5 {[%clk 0:01:14]} 25. Rd1 {[%clk 0:01:46]}  Nd4 {[%clk 0:01:13]} 26. Bh3 {[%clk 0:01:36]}  Kf7 {[%clk 0:01:13]} 27. Bc7 {[%clk 0:01:33]}  Ra4 {[%clk 0:01:07]} 28. Rb1 {[%clk 0:01:32]}  Ra2 {[%clk 0:01:03]} 29. Bc8 {[%clk 0:01:30]}  Ne2+ {[%clk 0:00:57]} 30. Kg2 {[%clk 0:01:26]}  Nc3 {[%clk 0:00:58]} 31. Re1 {[%clk 0:01:25]}  e4 {[%clk 0:00:52]} 32. Bf4 {[%clk 0:01:14]}  Ra4 {[%clk 0:00:40]} 33. Bxb7 {[%clk 0:01:11]}  Rxb4 {[%clk 0:00:41]} 34. Bxc6 {[%clk 0:01:11]}  Rc4 {[%clk 0:00:28]} 35. Bd6 {[%clk 0:01:08]}  Bf8 {[%clk 0:00:27]} 36. Bb7 {[%clk 0:00:48]}  Bxd6 {[%clk 0:00:25]} 37. cxd6 {[%clk 0:00:49]}  Ke6 {[%clk 0:00:24]} 38. f3 {[%clk 0:00:48]}  Kxd6 {[%clk 0:00:24]} 39. Bxe4 {[%clk 0:00:48]}  Nxe4 {[%clk 0:00:23]} 40. Rxe4 {[%clk 0:00:49]}  Rc2+ {[%clk 0:00:21]} 41. Kh3 {[%clk 0:00:49]}  Rf2 {[%clk 0:00:19]} 42. Re3 {[%clk 0:00:48]}  Kd7 {[%clk 0:00:18]} 43. g4 {[%clk 0:00:48]}  g5 {[%clk 0:00:14]} 44. Kg3 {[%clk 0:00:47]}  Rf1 {[%clk 0:00:14]} 45. Re5 {[%clk 0:00:47]}  h6 {[%clk 0:00:14]} 46. Re2 {[%clk 0:00:47]}  Rg1+ {[%clk 0:00:12]} 47. Kf2 {[%clk 0:00:45]}  Rh1 {[%clk 0:00:12]} 48. Kg2 {[%clk 0:00:45]}  Rd1 {[%clk 0:00:11]} 49. h4 {[%clk 0:00:45]}  Rd5 {[%clk 0:00:11]} 50. h5 {[%clk 0:00:44]}  Rd6 {[%clk 0:00:08]} 51. Kf2 {[%clk 0:00:44]}  Rd4 {[%clk 0:00:08]} 52. Ra2 {[%clk 0:00:43]}  Rd6 {[%clk 0:00:07]} 53. Ra7+ {[%clk 0:00:43]}  Ke6 {[%clk 0:00:07]} 54. Rh7 {[%clk 0:00:42]}  Ke5 {[%clk 0:00:08]} 55. Ke3 {[%clk 0:00:43]}  Ra6 {[%clk 0:00:07]} 56. Re7+ {[%clk 0:00:41]}  Kf6 {[%clk 0:00:07]} 57. Rd7 {[%clk 0:00:41]}  Ra3+ {[%clk 0:00:06]} 58. Ke4 {[%clk 0:00:41]}  Ra4+ {[%clk 0:00:06]} 59. Rd4 {[%clk 0:00:40]}  Ra6 {[%clk 0:00:07]} 60. Rb4 {[%clk 0:00:40]}  Re6+ {[%clk 0:00:06]} 61. Kd5 {[%clk 0:00:38]}  Re3 {[%clk 0:00:06]} 62. Rb6+ {[%clk 0:00:36]}  Kg7 {[%clk 0:00:06]} 63. Rb7+ {[%clk 0:00:37]}  Kg8 {[%clk 0:00:06]} 64. Rb8+ {[%clk 0:00:33]}  Kg7 {[%clk 0:00:06]} 65. Rb7+ {[%clk 0:00:32]}  Kg8 {[%clk 0:00:06]} 66. Rb6 {[%clk 0:00:33]}  Kg7 {[%clk 0:00:05]} 67. Rg6+ {[%clk 0:00:34]}  Kh7 {[%clk 0:00:06]} 68. Rf6 {[%clk 0:00:34]}  Kg7 {[%clk 0:00:06]} 69. Rf5 {[%clk 0:00:35]}  Kh7 {[%clk 0:00:07]} 70. Kd4 {[%clk 0:00:35]}  Ra3 {[%clk 0:00:06]} 71. Ke4 {[%clk 0:00:33]}  Kg7 {[%clk 0:00:06]} 72. Rd5 {[%clk 0:00:32]}  Ra4+ {[%clk 0:00:06]} 73. Ke5 {[%clk 0:00:32]}  Rf4 {[%clk 0:00:05]} 74. Rd7+ {[%clk 0:00:30]}  Kg8 {[%clk 0:00:05]} 75. Rd3 {[%clk 0:00:31]}  Kg7 {[%clk 0:00:05]} 76. Ra3 {[%clk 0:00:30]}  Kg8 {[%clk 0:00:04]} 77. Ke6 {[%clk 0:00:29]}  Kg7 {[%clk 0:00:03]} 78. Ke7 {[%clk 0:00:29]}  Kg8 {[%clk 0:00:03]} 79. Ra6 {[%clk 0:00:27]}  Kg7 {[%clk 0:00:03]} 80. Rg6+ {[%clk 0:00:27]}  Kh7 {[%clk 0:00:03]} 81. Rf6 {[%clk 0:00:27]}  Ra4 {[%clk 0:00:03]} 82. Kf7 {[%clk 0:00:27]}  Ra7+ {[%clk 0:00:04]} 83. Ke6 {[%clk 0:00:27]}  Ra6+ {[%clk 0:00:04]} 84. Ke5 {[%clk 0:00:27]}  Ra5+ {[%clk 0:00:05]} 85. Ke4 {[%clk 0:00:28]}  Ra4+ {[%clk 0:00:05]} 86. Ke3 {[%clk 0:00:28]}  Ra3+ {[%clk 0:00:06]} 87. Kf2 {[%clk 0:00:29]}  Ra2+ {[%clk 0:00:06]} 88. Kg3 {[%clk 0:00:30]}  Ra3 {[%clk 0:00:06]} 89. Re6 {[%clk 0:00:30]}  Rb3 {[%clk 0:00:06]} 90. Re4 {[%clk 0:00:31]}  Ra3 {[%clk 0:00:06]} 91. Re2 {[%clk 0:00:32]}  Rb3 {[%clk 0:00:06]} 92. Kf2 {[%clk 0:00:32]}  Kg7 {[%clk 0:00:06]} 93. Ra2 {[%clk 0:00:33]}  Rc3 {[%clk 0:00:05]} 94. Ra7+ {[%clk 0:00:31]}  Kg8 {[%clk 0:00:04]} 95. Rd7 {[%clk 0:00:31]}  Rb3 {[%clk 0:00:04]} 96. Ke2 {[%clk 0:00:31]}  Rc3 {[%clk 0:00:04]} 97. Rd3 {[%clk 0:00:31]}  Rc6 {[%clk 0:00:04]} 98. Ke3 {[%clk 0:00:32]}  Kg7 {[%clk 0:00:04]} 99. Rd7+ {[%clk 0:00:31]}  Kg8 {[%clk 0:00:05]} 100. Ke4 {[%clk 0:00:31]} 1/2-1/2


[Site "https://www.chess.com"]

[Event "Titled Tuesday Blitz April 18 Late 2023"]
[White "Domingo Nunez, Ruben"]
[Black "Naroditsky, Daniel"]
[WhiteFideId "22245570"]
[BlackFideId "2026961"]
[WhiteElo "2404"]
[BlackElo "2633"]
[Result "0-1"]
[Round "05"]
[TimeControl "180+2"]
[Date "2023.04.18"]
[WhiteClock "0:00:18"]
[BlackClock "0:01:16"]

1. e4 {[%clk 0:02:41]}  c5 {[%clk 0:02:59]} 2. d4 {[%clk 0:02:42]}  cxd4 {[%clk 0:03:00]} 3. c3 {[%clk 0:02:42]}  Nf6 {[%clk 0:02:59]} 4. e5 {[%clk 0:02:43]}  Nd5 {[%clk 0:03:00]} 5. Nf3 {[%clk 0:02:44]}  e6 {[%clk 0:02:59]} 6. cxd4 {[%clk 0:02:44]}  b6 {[%clk 0:03:00]} 7. Nc3 {[%clk 0:02:43]}  Bb7 {[%clk 0:03:00]} 8. Bd2 {[%clk 0:02:44]}  Nxc3 {[%clk 0:02:59]} 9. bxc3 {[%clk 0:02:44]}  d6 {[%clk 0:02:59]} 10. Bd3 {[%clk 0:02:44]}  Nd7 {[%clk 0:02:59]} 11. Qe2 {[%clk 0:02:44]}  Qc7 {[%clk 0:02:59]} 12. exd6 {[%clk 0:02:45]}  Bxd6 {[%clk 0:03:00]} 13. h3 {[%clk 0:02:45]}  O-O {[%clk 0:02:59]} 14. O-O {[%clk 0:02:45]}  Nf6 {[%clk 0:03:00]} 15. Rac1 {[%clk 0:02:45]}  Nd5 {[%clk 0:02:53]} 16. Qe4 {[%clk 0:02:44]}  g6 {[%clk 0:02:52]} 17. Qh4 {[%clk 0:02:44]}  Nf4 {[%clk 0:02:44]} 18. Ng5 {[%clk 0:01:52]}  h5 {[%clk 0:02:43]} 19. Bxf4 {[%clk 0:01:24]}  Bxf4 {[%clk 0:02:44]} 20. Rce1 {[%clk 0:01:24]}  Bxg5 {[%clk 0:02:14]} 21. Qxg5 {[%clk 0:01:24]}  Qd8 {[%clk 0:02:14]} 22. Qe5 {[%clk 0:01:20]}  Qd5 {[%clk 0:02:07]} 23. f3 {[%clk 0:01:11]}  Qxe5 {[%clk 0:02:05]} 24. Rxe5 {[%clk 0:01:12]}  Rac8 {[%clk 0:02:05]} 25. Rc1 {[%clk 0:01:12]}  Rfd8 {[%clk 0:02:05]} 26. Rc2 {[%clk 0:01:11]}  Bd5 {[%clk 0:02:00]} 27. Kf2 {[%clk 0:01:09]}  Bc4 {[%clk 0:02:00]} 28. Ke3 {[%clk 0:01:02]}  f6 {[%clk 0:01:50]} 29. Bxc4 {[%clk 0:01:02]}  Rxc4 {[%clk 0:01:45]} 30. Rxe6 {[%clk 0:01:02]}  Kf7 {[%clk 0:01:40]} 31. Re4 {[%clk 0:01:01]}  f5 {[%clk 0:01:41]} 32. Rf4 {[%clk 0:00:51]}  Kf6 {[%clk 0:01:39]} 33. h4 {[%clk 0:00:50]}  b5 {[%clk 0:01:35]} 34. Kd3 {[%clk 0:00:18]}  Rdc8 {[%clk 0:01:34]} 35. a3 {[%clk 0:00:19]}  a5 {[%clk 0:01:27]} 36. g4 {[%clk 0:00:19]}  b4 {[%clk 0:01:22]} 37. axb4 {[%clk 0:00:20]}  axb4 {[%clk 0:01:22]} 38. gxh5 {[%clk 0:00:20]}  Rxc3+ {[%clk 0:01:13]} 39. Rxc3 {[%clk 0:00:19]}  Rxc3+ {[%clk 0:01:14]} 40. Kd2 {[%clk 0:00:20]}  g5 {[%clk 0:01:14]} 41. hxg5+ {[%clk 0:00:17]}  Kxg5 {[%clk 0:01:15]} 42. h6 {[%clk 0:00:16]}  Kxf4 {[%clk 0:01:16]} 43. h7 {[%clk 0:00:17]}  Rc8 {[%clk 0:01:16]} 44. d5 {[%clk 0:00:18]}  Ke5 {[%clk 0:01:16]} 45. f4+ {[%clk 0:00:18]}  Kxd5 {[%clk 0:01:16]} 0-1


[Site "https://www.chess.com"]

[Event "Titled Tuesday Blitz April 18 Late 2023"]
[White "Grigoriants, Sergey"]
[Black "Averjanov, Alexey"]
[WhiteFideId "4130804"]
[BlackFideId "14109867"]
[WhiteElo "2502"]
[BlackElo "2625"]
[Result "0-1"]
[Round "05"]
[TimeControl "180+2"]
[Date "2023.04.18"]
[WhiteClock "0:00:25"]
[BlackClock "0:01:45"]

1. d4 {[%clk 0:02:57]}  d5 {[%clk 0:02:59]} 2. c4 {[%clk 0:02:55]}  dxc4 {[%clk 0:02:59]} 3. e3 {[%clk 0:02:54]}  Nf6 {[%clk 0:03:00]} 4. Bxc4 {[%clk 0:02:55]}  e6 {[%clk 0:03:00]} 5. Nf3 {[%clk 0:02:55]}  a6 {[%clk 0:03:01]} 6. O-O {[%clk 0:02:52]}  b5 {[%clk 0:03:01]} 7. Be2 {[%clk 0:02:44]}  Bb7 {[%clk 0:03:00]} 8. b3 {[%clk 0:02:23]}  Nbd7 {[%clk 0:02:59]} 9. a4 {[%clk 0:02:21]}  b4 {[%clk 0:02:59]} 10. Bb2 {[%clk 0:02:19]}  c5 {[%clk 0:02:59]} 11. Nbd2 {[%clk 0:02:18]}  Be7 {[%clk 0:03:00]} 12. Nc4 {[%clk 0:02:17]}  Qc7 {[%clk 0:03:00]} 13. Rc1 {[%clk 0:02:17]}  O-O {[%clk 0:03:00]} 14. Nfe5 {[%clk 0:02:05]}  Rfd8 {[%clk 0:03:00]} 15. Bf3 {[%clk 0:02:04]}  Nxe5 {[%clk 0:02:59]} 16. Nxe5 {[%clk 0:02:03]}  Rac8 {[%clk 0:02:57]} 17. h3 {[%clk 0:01:45]}  Qb8 {[%clk 0:02:53]} 18. Qe2 {[%clk 0:01:33]}  Ne4 {[%clk 0:02:47]} 19. Rc2 {[%clk 0:01:23]}  cxd4 {[%clk 0:02:31]} 20. Bxd4 {[%clk 0:01:20]}  Nc3 {[%clk 0:02:26]} 21. Bxc3 {[%clk 0:01:07]}  bxc3 {[%clk 0:02:27]} 22. Bxb7 {[%clk 0:01:07]}  Qxb7 {[%clk 0:02:27]} 23. Rfc1 {[%clk 0:01:03]}  Qxb3 {[%clk 0:02:24]} 24. Qxa6 {[%clk 0:01:02]}  Ba3 {[%clk 0:02:22]} 25. Nc6 {[%clk 0:00:32]}  Bxc1 {[%clk 0:02:16]} 26. Nxd8 {[%clk 0:00:32]}  Rxd8 {[%clk 0:01:55]} 27. Rxc1 {[%clk 0:00:32]}  Qb2 {[%clk 0:01:52]} 28. Rf1 {[%clk 0:00:28]}  c2 {[%clk 0:01:49]} 29. Qa5 {[%clk 0:00:25]}  Rc8 {[%clk 0:01:45]} 0-1


[Site "https://www.chess.com"]